[Event "Israel-ch Women 2021"]
[Site "Haifa"]
[Date "2021.03.11"]
[Round "5.19"]
[White "Lian, Marina"]
[Black "Golovchanskaya, Alina"]
[Result "1-0"]
[ECO "B23"]
[WhiteElo "1870"]
[BlackElo "1681"]
[Annotator "NA RC"]
[PlyCount "131"]
[EventDate "2021.01.10"]
[EventType "swiss"]
[EventCountry "ISR"]
[SourceTitle "playchess.com"]
[Source "ChessBase"]
[SourceQuality "1"]
[TimeControl "40/5400+30:3600+30"]

{[%evp 8,125,6,0,61,9,8,-33,-34,-32,-30,-42,-33,-43,-12,0,-2,-11,17,45,54,21,80,71,58,46,66,73,141,179,135,129,141,129,172,162,245,245,245,236,243,278,32767,32767,32767,32767,504,578,525,691,606,592,539,575,805,675,981,913,1056,32767,32767,29993,29994,1091,970,1184,5581,889,904,32767,1399,738,696,858,667,672,670,834,800,887,893,1137,1260,2432,1431,4207,1852,5518,6095,12760,5539,6346,32767,32767,32767,32767,32767,32767,32767,32767,32767,32767,32767,32767,32767,32767,32767,32767,29990,32767,29991,32767,32767,32767,32767,32767,29995,29996,29996,29997]} 1. e4 {[%emt 0:00:00]} c5 {[%emt 0:00:00]} 2. Nc3 {[%emt 0:00:00]} Nc6 {[%emt 0:00:00]} 3. f4 {[%emt 0:00:00]} g6 {[%emt 0:00:08]} 4. Nf3 {[%emt 0:00:01]} Bg7 {[%emt 0:00:08]} 5. Bb5 {[%emt 0:00:20]} e6 {[%emt 0:00:48]} ({Better is} 5... Nd4 $11) 6. O-O {[%emt 0:01:25]} (6. Bxc6 $14 dxc6 7. d3) 6... Nge7 {[%emt 0:00:14]} 7. d3 {[%emt 0:03:20]} Na5 {[%emt 0:21:39]} 8. e5 {[%emt 0:09:44]} a6 {[%emt 0:00:53]} 9. Ba4 {[%emt 0:03:25]} b5 {[%emt 0:00:56]} 10. Bb3 {[%emt 0:00:06]} d5 {[%emt 0:09:31]} 11. exd6 {[%emt 0:05:50]} Qxd6 {[%emt 0:00:19]} 12. Ne4 {[%emt 0:01:02]} Qd8 {[%emt 0:17:30]} 13. c3 {[%emt 0:02:32]} Nb7 {[%emt 0:06:50]} 14. a4 {[%emt 0:21:51]} Bd7 {[%emt 0:06:25]} 15. axb5 {[%emt 0:14:09]} axb5 {[%emt 0:00:30]} 16. Rxa8 {[%emt 0:00:30]} Qxa8 {[%emt 0:00:05]} 17. Be3 {[%emt 0:00:43]} Qc8 {[%emt 0:05:55] [#]} (17... O-O $14) 18. Bxc5 $1 {[%emt 0:02:25]} Nf5 {[%emt 0:08:24]} 19. Bf2 {[%emt 0:01:02]} O-O {[%emt 0:02:19]} 20. Ne5 {[%emt 0:01:33]} Be8 {[%emt 0:03:15]} 21. Qa1 {[%emt 0:05:50]} Nfd6 {[%emt 0:01:06] [#]} 22. Nxd6 $1 {[%emt 0:01:32]} Nxd6 {[%emt 0:00:05]} 23. Qa7 {[%emt 0:02:44]} Nb7 {[%emt 0:03:51]} 24. Qb6 {[%emt 0:01:22]} Bxe5 {[%emt 0:00:59]} 25. fxe5 {[%emt 0:00:06]} h6 {[%emt 0:01:24]} 26. Be3 {[%emt 0:02:55]} Qc6 {[%emt 0:04:57]} 27. Qd4 {[%emt 0:01:01]} Kg7 {[%emt 0:00:55]} 28. Qf4 {[%emt 0:03:01]} Rh8 {[%emt 0:00:16]} 29. Qf6+ {[%emt 0:00:32]} Kg8 {[%emt 0:00:32]} 30. d4 {[%emt 0:02:40]} Na5 {[%emt 0:00:54]} 31. Bc2 {[%emt 0:00:27]} Nc4 {[%emt 0:00:28]} 32. Bc1 {[%emt 0:01:41]} Rh7 {[%emt 0:02:15]} 33. Rf3 {[%emt 0:03:32]} Nb6 {[%emt 0:00:55] [#]} 34. Bxg6 $1 {[%emt 0:02:10]} Rg7 {[%emt 0:00:19] [#]} 35. Bh5 {[%emt 0:00:43]} (35. Bxf7+ $142 $1 {[%mdl 512]} Bxf7 36. Bxh6 Rxg2+ {[%mdl 64] Remove Defender} 37. Kxg2 Qxf3+ 38. Kxf3 Bh5+ 39. Kg3 Kh7 40. Qg7#) 35... Nd5 {[%emt 0:01:52]} 36. Qh4 {[%emt 0:00:15]} Kh7 {[%emt 0:00:39]} 37. Qe4+ {[%emt 0:00:17]} Kg8 {[%emt 0:00:14]} 38. Bxh6 {[%emt 0:01:28]} Ne7 {[%emt 0:00:51]} 39. Qxc6 {[%emt 0:02:28]} Bxc6 {[%emt 0:00:23]} 40. Bxg7 {[%emt 0:01:07]} Bxf3 {[%emt 0:00:04]} 41. Bxf3 {[%emt 1:00:19]} Kxg7 {[%emt 1:00:04]} 42. g4 {[%emt 0:00:30]} Kh6 {[%emt 0:01:22]} 43. Kf2 {[%emt 0:01:28]} Kg5 {[%emt 0:00:05]} 44. Kg3 {[%emt 0:00:11]} f5 {[%emt 0:00:00]} 45. exf6 {[%emt 0:00:00]} Kxf6 {[%emt 0:00:00]} 46. h4 {[%emt 0:00:00]} Nc8 {[%emt 0:00:00]} 47. Kf4 {[%emt 0:00:00]} Nd6 {[%emt 0:00:00]} 48. g5+ {[%emt 0:00:00]} Kf7 {[%emt 0:00:00]} 49. h5 {[%emt 0:00:00]} Nc4 {[%emt 0:00:00]} 50. Be2 {[%emt 0:00:00]} Nxb2 {[%emt 0:00:00]} 51. Bxb5 {[%emt 0:00:00]} Nd1 {[%emt 0:00:00]} 52. c4 {[%emt 0:00:00]} Nc3 {[%emt 0:00:00]} 53. Ke5 {[%emt 0:00:00]} Ke7 {[%emt 0:00:00]} 54. h6 {[%emt 0:00:00]} Kf7 {[%emt 0:00:00]} 55. h7 {[%emt 0:00:00]} Kg7 {[%emt 0:00:00]} 56. g6 {[%emt 0:00:00]} Ne2 {[%emt 0:00:00]} 57. Be8 {[%emt 0:00:00]} Ng3 {[%emt 0:00:00]} 58. Kxe6 {[%emt 0:00:00]} Kh8 {[%emt 0:00:00]} 59. c5 {[%emt 0:00:00]} Ne4 {[%emt 0:00:00]} 60. c6 {[%emt 0:00:00]} Nf6 {[%emt 0:00:00]} 61. Bf7 {[%emt 0:00:00]} Nxh7 {[%emt 0:00:00]} 62. gxh7 {[%emt 0:00:00]} Kxh7 {[%emt 0:00:00]} 63. c7 {[%emt 0:00:00]} Kg7 {[%emt 0:00:00]} 64. c8=Q {[%emt 0:00:00]} Kh6 {[%emt 0:00:00]} 65. Kf6 {[%emt 0:00:00]} Kh7 {[%emt 0:00:00]} 66. Qg8+ {[%emt 0:00:00]} 1-0

[Event "Israel-ch Women 2021"]
[Site "Haifa"]
[Date "2021.03.11"]
[Round "5.20"]
[White "Orian, Noga"]
[Black "Kochavi, Dana"]
[Result "1/2-1/2"]
[ECO "E43"]
[WhiteElo "1658"]
[BlackElo "1572"]
[Annotator "NA RC"]
[PlyCount "116"]
[EventDate "2021.01.10"]
[EventType "swiss"]
[EventCountry "ISR"]
[SourceTitle "playchess.com"]
[Source "ChessBase"]
[SourceQuality "1"]
[TimeControl "40/5400+30:3600+30"]

1. d4 {[%emt 0:00:00]} Nf6 {[%emt 0:00:00]} 2. c4 {[%emt 0:00:00]} e6 {[%emt 0:00:00]} 3. Nc3 {[%emt 0:00:00]} Bb4 {[%emt 0:00:00]} 4. e3 {[%emt 0:00:00]} c5 {[%emt 0:00:00]} 5. Bd3 {[%emt 0:00:04]} O-O {[%emt 0:00:08]} 6. Nf3 {[%emt 0:00:13]} b6 {[%emt 0:01:14]} 7. a3 {[%emt 0:00:29]} Bxc3+ {[%emt 0:00:04]} 8. bxc3 {[%emt 0:00:06]} Bb7 {[%emt 0:00:27]} 9. O-O {[%emt 0:00:27]} d6 {[%emt 0:06:09]} 10. Qe2 {[%emt 0:02:50]} Nbd7 {[%emt 0:02:06]} 11. e4 {[%emt 0:01:20]} e5 {[%emt 0:00:59]} 12. d5 {[%emt 0:00:36]} h6 {[%emt 0:01:41]} 13. Ne1 {[%emt 0:03:11]} Re8 {[%emt 0:03:16]} 14. Nc2 {[%emt 0:11:57]} Nf8 {[%emt 0:02:09]} 15. Ne3 {[%emt 0:03:49]} Bc8 {[%emt 0:07:08]} 16. g4 {[%emt 0:07:53]} g6 {[%emt 0:14:09]} 17. Kh1 {[%emt 0:08:34]} N8h7 {[%emt 0:05:29]} 18. f3 {[%emt 0:01:58]} h5 {[%emt 0:13:38]} 19. Bc2 {[%emt 0:22:45]} h4 {[%emt 0:10:03]} 20. Ba4 {[%emt 0:23:11]} Bd7 {[%emt 0:03:04]} 21. Bxd7 {[%emt 0:00:06]} Nxd7 {[%emt 0:00:05]} 22. g5 {[%emt 0:09:28]} Kg7 {[%emt 0:06:32]} 23. Rg1 {[%emt 0:00:24]} Rh8 {[%emt 0:01:01]} 24. Qf2 {[%emt 0:01:03]} Qc8 {[%emt 0:22:38]} 25. Qxh4 {[%emt 0:00:44]} Nhf8 {[%emt 0:00:00]} 26. Qf2 {[%emt 0:01:52]} a6 {[%emt 0:01:00]} 27. a4 {[%emt 0:00:00]} Rb8 {[%emt 0:00:00]} 28. Rb1 {[%emt 0:00:00]} Qe8 {[%emt 0:00:00]} 29. Kg2 {[%emt 0:00:51]} Rb7 {[%emt 0:00:00]} 30. Kf1 {[%emt 0:00:23]} Nb8 {[%emt 0:00:00]} 31. Qe2 {[%emt 0:00:36]} Qxa4 {[%emt 0:00:00]} 32. Bd2 {[%emt 0:00:36]} Qd7 {[%emt 0:00:00]} 33. Rg3 {[%emt 0:00:29]} a5 {[%emt 0:00:00]} 34. Ng4 {[%emt 0:00:31]} Nh7 {[%emt 0:00:00]} 35. Qg2 {[%emt 0:00:22]} Qa4 {[%emt 0:00:00]} 36. Qe2 {[%emt 0:00:34]} Qa2 {[%emt 0:00:00]} 37. Re1 {[%emt 0:00:29]} Qb3 {[%emt 0:00:00]} 38. Kf2 {[%emt 0:00:33]} a4 {[%emt 0:00:00]} 39. Rgg1 {[%emt 0:00:22]} a3 {[%emt 0:00:00]} 40. Rb1 {[%emt 0:00:27]} Qa4 {[%emt 0:00:00]} 41. Ra1 {[%emt 0:42:35]} a2 {[%emt 0:33:49]} 42. Be3 {[%emt 0:05:03]} Ra7 {[%emt 0:00:17]} 43. Rgc1 {[%emt 0:00:17]} f5 {[%emt 0:01:39]} 44. gxf6+ {[%emt 0:01:50]} Nxf6 {[%emt 0:00:10]} 45. Kg1 {[%emt 0:00:20]} Nxg4 {[%emt 0:01:58]} 46. fxg4 {[%emt 0:00:02]} Qb3 {[%emt 0:00:19]} 47. Bg5 {[%emt 0:03:34]} Nd7 {[%emt 0:09:10]} 48. h4 {[%emt 0:00:56]} Nf8 {[%emt 0:04:08]} 49. h5 {[%emt 0:06:21]} gxh5 {[%emt 0:00:37]} 50. gxh5 {[%emt 0:00:02]} Kh7 {[%emt 0:00:24]} 51. Qf1 {[%emt 0:02:14]} Rg7 {[%emt 0:00:57]} 52. Qf5+ {[%emt 0:00:20]} Kg8 {[%emt 0:00:11]} 53. Rf1 {[%emt 0:00:35]} Rxh5 {[%emt 0:01:06]} 54. Qxf8+ {[%emt 0:02:33]} Kh7 {[%emt 0:00:02]} 55. Qf5+ {[%emt 0:00:49]} Kh8 {[%emt 0:00:37]} 56. Qf8+ {[%emt 0:00:38]} Kh7 {[%emt 0:00:13]} 57. Qf5+ {[%emt 0:00:29]} Kh8 {[%emt 0:00:07]} 58. Qf8+ {[%emt 0:00:35]} Kh7 {[%emt 0:00:05]} 1/2-1/2

[Event "Israel-ch Women 2021"]
[Site "Haifa"]
[Date "2021.03.12"]
[Round "6.6"]
[White "Kochavi, Dana"]
[Black "Aleksandrova, Aleksandra"]
[Result "0-1"]
[ECO "B12"]
[WhiteElo "1572"]
[BlackElo "1769"]
[Annotator "NA RC"]
[PlyCount "180"]
[EventDate "2021.01.10"]
[EventType "swiss"]
[EventCountry "ISR"]
[SourceTitle "playchess.com"]
[Source "ChessBase"]
[SourceQuality "1"]
[TimeControl "40/5400+30:3600+30"]

1. e4 {[%emt 0:00:00]} d6 {[%emt 0:00:00]} 2. d4 {[%emt 0:00:00]} Nd7 {[%emt 0:00:00]} 3. Nc3 {[%emt 0:00:00]} c6 {[%emt 0:00:00]} 4. f4 {[%emt 0:00:00]} e5 {[%emt 0:01:49]} 5. Nf3 {[%emt 0:00:06]} Qc7 {[%emt 0:00:20]} 6. g4 {[%emt 0:01:16]} Be7 {[%emt 0:00:30]} 7. a4 {[%emt 0:09:11]} exd4 {[%emt 0:02:48]} 8. Qxd4 {[%emt 0:00:17]} Bf6 {[%emt 0:00:08]} 9. Qd2 {[%emt 0:00:14]} g6 {[%emt 0:12:48]} 10. h3 {[%emt 1:23:56]} a5 {[%emt 1:16:37]} 11. Bc4 {[%emt 0:00:30]} Ne7 {[%emt 0:00:30]} 12. Qe3 {[%emt 0:00:00]} O-O 13. Bd2 {[%emt 0:00:00]} d5 14. exd5 {[%emt 0:01:30]} cxd5 {[%emt 0:00:00]} 15. Bb3 {[%emt 0:00:30]} d4 {[%emt 0:02:00]} 16. Nxd4 {[%emt 0:00:00]} Bh4+ {[%emt 0:00:30]} 17. Kd1 {[%emt 0:01:00]} Nb6 {[%emt 0:00:30]} 18. Ncb5 {[%emt 0:00:30]} Qd8 {[%emt 0:00:30]} 19. c3 {[%emt 0:00:00]} Bd7 20. Kc2 {[%emt 0:00:00]} Rc8 21. Rad1 {[%emt 0:01:30]} Bc6 {[%emt 0:00:00]} 22. Nxc6 bxc6 23. Na3 {[%emt 0:01:00]} Ned5 {[%emt 0:02:30]} 24. Qf3 {[%emt 0:00:30]} Be7 {[%emt 0:00:00]} 25. c4 {[%emt 0:00:30]} Bxa3 {[%emt 0:00:00]} 26. bxa3 {[%emt 0:00:00]} Qe7 {[%emt 0:00:00]} 27. Bc1 {[%emt 0:00:00]} Nf6 {[%emt 0:00:00]} 28. Bb2 {[%emt 0:00:00]} Qe4+ {[%emt 0:00:00]} 29. Qxe4 {[%emt 0:00:00]} Nxe4 {[%emt 0:00:00]} 30. Rde1 {[%emt 0:00:00]} Rfe8 {[%emt 0:00:00]} 31. Be5 {[%emt 0:00:00]} Nc5 32. Bd4 {[%emt 0:03:30]} Nbxa4 {[%emt 0:00:00]} 33. Bxa4 {[%emt 0:00:00]} Nxa4 {[%emt 0:00:00]} 34. c5 {[%emt 0:00:00]} Red8 {[%emt 0:00:00]} 35. Rd1 {[%emt 0:00:00]} Rd5 36. Kb3 {[%emt 0:02:00]} Nxc5+ {[%emt 0:01:20]} 37. Bxc5 Rxc5 38. Rc1 {[%emt 0:01:00]} Rb8+ {[%emt 0:01:52]} 39. Ka2 {[%emt 0:00:00]} Rbb5 {[%emt 0:00:00]} 40. Rxc5 {[%emt 0:00:00]} Rxc5 {[%emt 0:00:17]} 41. Kb3 {[%emt 0:39:49]} Kf8 42. Re1 {[%emt 0:00:00]} f5 {[%emt 0:37:39]} 43. g5 {[%emt 0:00:00]} Kf7 44. h4 {[%emt 0:23:11]} Rd5 {[%emt 0:04:51]} 45. Kc3 c5 {[%emt 0:25:01]} 46. h5 {[%emt 0:01:00]} gxh5 {[%emt 0:00:30]} 47. Rh1 {[%emt 0:00:00]} Kg6 {[%emt 0:00:00]} 48. Rb1 {[%emt 0:00:00]} Rd4 {[%emt 0:00:00]} 49. Rb6+ {[%emt 0:00:00]} Kg7 {[%emt 0:00:00]} 50. Rb7+ {[%emt 0:00:00]} Kg8 {[%emt 0:00:00]} 51. Rb8+ {[%emt 0:00:00]} Kf7 {[%emt 0:00:00]} 52. Rb7+ {[%emt 0:03:00]} Ke6 {[%emt 0:00:00]} 53. Rxh7 {[%emt 0:00:00]} Rxf4 {[%emt 0:03:30]} 54. Rxh5 {[%emt 0:00:00]} Rg4 {[%emt 0:00:30]} 55. Rh6+ {[%emt 0:01:30]} Kd5 {[%emt 0:00:00]} 56. Rg6 {[%emt 0:00:30]} Rg3+ {[%emt 0:00:00]} 57. Kb2 {[%emt 0:00:30]} Kc4 {[%emt 0:00:00]} 58. Rg8 {[%emt 0:00:30]} Rg2+ {[%emt 0:00:00]} 59. Kc1 {[%emt 0:00:30]} Kb3 {[%emt 0:00:00]} 60. g6 {[%emt 0:00:00]} Kxa3 {[%emt 0:00:00]} 61. Rc8 {[%emt 0:01:00]} Kb4 {[%emt 0:00:00]} 62. Rb8+ {[%emt 0:00:00]} Kc3 {[%emt 0:00:00]} 63. Kb1 {[%emt 0:00:00]} Rxg6 {[%emt 0:00:00]} 64. Rb5 {[%emt 0:01:30]} c4 {[%emt 0:05:00]} 65. Rxf5 {[%emt 0:00:00]} Rb6+ {[%emt 0:00:00]} 66. Ka2 {[%emt 0:01:00]} Kb4 {[%emt 0:01:00]} 67. Kb2 {[%emt 0:00:00]} a4 {[%emt 0:00:30]} 68. Rf4 {[%emt 0:00:00]} Rd6 {[%emt 0:00:00]} 69. Rf8 {[%emt 0:00:00]} a3+ {[%emt 0:00:00]} 70. Ka2 {[%emt 0:00:00]} c3 {[%emt 0:00:00]} 71. Rf4+ {[%emt 0:00:00]} Kc5 {[%emt 0:00:00]} 72. Kxa3 {[%emt 0:00:00]} Rb6 {[%emt 0:00:00]} 73. Rf8 {[%emt 0:03:30]} Kc4 {[%emt 0:03:00]} 74. Ka2 {[%emt 0:00:30]} Rb5 {[%emt 0:00:30]} 75. Rd8 {[%emt 0:00:00]} c2 {[%emt 0:00:00]} 76. Rc8+ {[%emt 0:00:00]} Kd3 {[%emt 0:00:00]} 77. Rd8+ {[%emt 0:01:30]} Kc3 {[%emt 0:00:00]} 78. Rc8+ {[%emt 0:00:30]} Kd2 {[%emt 0:00:00]} 79. Rd8+ {[%emt 0:00:00]} Kc1 {[%emt 0:00:00]} 80. Ra8 {[%emt 0:00:00]} Rb2+ {[%emt 0:03:00]} 81. Ka1 {[%emt 0:00:00]} Rb1+ {[%emt 0:00:00]} 82. Ka2 {[%emt 0:00:00]} Kd2 {[%emt 0:01:00]} 83. Rd8+ {[%emt 0:00:00]} Ke3 {[%emt 0:00:30]} 84. Re8+ {[%emt 0:03:00]} Kd4 {[%emt 0:00:00]} 85. Rc8 {[%emt 0:00:30]} c1=R {[%emt 0:00:00]} 86. Rd8+ {[%emt 0:00:00]} Ke5 {[%emt 0:00:00]} 87. Rd3 {[%emt 0:01:00]} Rb8 {[%emt 0:00:00]} 88. Ra3 {[%emt 0:00:00]} Rc2+ {[%emt 0:00:00]} 89. Ka1 {[%emt 0:01:00]} Rh8 {[%emt 0:00:00]} 90. Kb1 {[%emt 0:00:00]} Re2 {[%emt 0:03:30]} 0-1

[Event "Israel-ch Women 2021"]
[Site "Haifa"]
[Date "2021.03.13"]
[Round "7.17"]
[White "Shvayger, Yuliya"]
[Black "Orian, Noga"]
[Result "1-0"]
[ECO "C45"]
[WhiteElo "2327"]
[BlackElo "1658"]
[Annotator "NA"]
[PlyCount "60"]
[EventDate "2021.01.10"]
[EventType "swiss"]
[EventCountry "ISR"]
[SourceTitle "playchess.com"]
[Source "ChessBase"]
[SourceQuality "1"]
[TimeControl "40/5400+30:3600+30"]

1. e4 {[%emt 0:00:00]} d6 {[%emt 0:00:00]} 2. d4 {[%emt 0:00:09]} Nf6 {[%emt 0:00:00]} 3. Nc3 {[%emt 0:00:30]} e5 {[%emt 0:00:03]} 4. Nf3 {[%emt 0:01:18]} exd4 {[%emt 0:00:10]} 5. Nxd4 {[%emt 0:00:42]} Be7 {[%emt 0:00:23]} 6. Bd3 {[%emt 0:06:32]} Nc6 {[%emt 0:02:00]} 7. Nxc6 {[%emt 0:00:11]} bxc6 {[%emt 0:00:03]} 8. O-O {[%emt 0:00:09]} O-O {[%emt 0:00:05]} 9. f4 {[%emt 0:00:10]} Nd7 {[%emt 0:07:06]} 10. Be3 {[%emt 0:03:52]} Rb8 {[%emt 0:00:43]} 11. Rb1 {[%emt 0:00:47]} Nb6 {[%emt 0:01:25]} 12. Qf3 {[%emt 0:03:01]} Bb7 {[%emt 0:10:17]} 13. Rbd1 {[%emt 0:09:21]} d5 {[%emt 0:10:06]} 14. Qf2 {[%emt 0:11:56]} Bb4 {[%emt 0:24:22]} 15. Ne2 {[%emt 0:05:34]} dxe4 {[%emt 0:07:02]} 16. Bxe4 {[%emt 0:00:07]} Qe7 {[%emt 0:00:40]} 17. Ng3 {[%emt 0:11:42]} Ba6 {[%emt 0:02:37]} 18. Bd3 {[%emt 0:00:27]} Bxd3 {[%emt 0:00:11]} 19. Rxd3 {[%emt 0:01:41]} Rbd8 {[%emt 0:06:32]} 20. Bd4 {[%emt 0:04:18]} Rd5 {[%emt 0:05:25]} 21. Bxg7 {[%emt 0:13:03]} Rfd8 {[%emt 0:09:35]} 22. Bd4 {[%emt 0:01:02]} Qd7 {[%emt 0:05:02]} 23. Ne4 {[%emt 0:01:26]} Qf5 {[%emt 0:06:21]} 24. Nf6+ {[%emt 0:00:09]} Kf8 {[%emt 0:00:08]} 25. Nxd5 {[%emt 0:00:08]} Rxd5 {[%emt 0:00:07]} 26. Kh1 {[%emt 0:02:25]} c5 {[%emt 0:01:24]} 27. Be3 {[%emt 0:00:45]} Nc4 {[%emt 0:00:21]} 28. Rxd5 {[%emt 0:01:22]} Qxd5 {[%emt 0:00:02]} 29. a3 {[%emt 0:00:56]} Nxe3 {[%emt 0:00:51]} 30. Qxe3 {[%emt 0:00:02]} Qc4 {[%emt 0:00:18]} 1-0

[Event "Israel-ch Women 2021"]
[Site "Haifa"]
[Date "2021.03.13"]
[Round "7.18"]
[White "Haitovich, Avital"]
[Black "Katkov, Michelle"]
[Result "1-0"]
[ECO "C77"]
[WhiteElo "1981"]
[BlackElo "2078"]
[Annotator "NA"]
[PlyCount "27"]
[EventDate "2021.01.10"]
[EventType "swiss"]
[EventCountry "ISR"]
[SourceTitle "playchess.com"]
[Source "ChessBase"]
[SourceQuality "1"]
[TimeControl "40/5400+30:3600+30"]

1. e4 {[%emt 0:00:00]} e5 {[%emt 0:00:00]} 2. Nf3 {[%emt 0:00:00]} Nc6 {[%emt 0:00:00]} 3. Bb5 {[%emt 0:00:00]} a6 {[%emt 0:00:00]} 4. Ba4 {[%emt 0:00:00]} Nf6 {[%emt 0:00:00]} 5. d3 {[%emt 0:00:08]} b5 {[%emt 0:00:08]} 6. Bb3 {[%emt 0:00:02]} Bc5 {[%emt 0:00:13]} 7. Nc3 {[%emt 0:00:10]} d6 {[%emt 0:00:11]} 8. Nd5 {[%emt 0:00:09]} h6 {[%emt 0:00:05]} 9. c3 {[%emt 0:00:14]} Rb8 {[%emt 0:00:07]} 10. O-O {[%emt 0:02:33]} O-O {[%emt 0:00:14]} 11. Be3 {[%emt 0:01:09]} Be6 {[%emt 0:08:52]} 12. d4 {[%emt 0:04:26]} Ba7 {[%emt 0:18:25]} 13. Nxf6+ {[%emt 0:02:03]} Qxf6 {[%emt 0:00:07]} 14. d5 {[%emt 0:00:48]} 1-0

[Event "Israel-ch Women 2021"]
[Site "Haifa"]
[Date "2021.03.13"]
[Round "7.19"]
[White "Federovski, Adi"]
[Black "Reprun, Nadejda"]
[Result "1/2-1/2"]
[ECO "B12"]
[WhiteElo "1995"]
[BlackElo "1968"]
[Annotator "NA"]
[PlyCount "95"]
[EventDate "2021.01.10"]
[EventType "swiss"]
[EventCountry "ISR"]
[SourceTitle "playchess.com"]
[Source "ChessBase"]
[SourceQuality "1"]
[TimeControl "40/5400+30:3600+30"]

1. e4 {[%emt 0:00:00]} c6 {[%emt 0:00:00]} 2. d4 {[%emt 0:00:00]} d5 {[%emt 0:00:00]} 3. e5 {[%emt 0:00:13]} c5 {[%emt 0:00:00]} 4. dxc5 {[%emt 0:01:04]} e6 {[%emt 0:01:45]} 5. Be3 {[%emt 0:04:58]} Nc6 {[%emt 0:01:32]} 6. f4 {[%emt 0:01:06]} d4 {[%emt 0:01:55]} 7. Bf2 {[%emt 0:00:31]} Bxc5 {[%emt 0:00:05]} 8. Nd2 {[%emt 0:00:45]} Nh6 {[%emt 0:00:09]} 9. Bd3 {[%emt 0:00:55]} O-O {[%emt 0:12:18]} 10. Ngf3 {[%emt 0:00:55]} Nb4 {[%emt 0:04:37]} 11. Ne4 {[%emt 0:07:27]} Nxd3+ {[%emt 0:06:18]} 12. Qxd3 {[%emt 0:00:17]} Bb4+ {[%emt 0:00:58]} 13. Ned2 {[%emt 0:01:49]} f6 {[%emt 0:09:12]} 14. Bxd4 {[%emt 0:16:42]} fxe5 {[%emt 0:02:25]} 15. fxe5 {[%emt 0:02:59]} Nf5 {[%emt 0:06:21]} 16. O-O-O {[%emt 0:21:34]} Bd7 {[%emt 0:03:53]} 17. Ne4 {[%emt 0:03:55]} Bc6 {[%emt 0:04:16]} 18. a3 {[%emt 0:01:40]} Be7 {[%emt 0:01:03]} 19. Rhe1 {[%emt 0:04:44]} Bd5 {[%emt 0:01:58]} 20. Kb1 {[%emt 0:01:53]} b5 {[%emt 0:02:27]} 21. Nd6 {[%emt 0:04:49]} Nxd6 {[%emt 0:07:23]} 22. exd6 {[%emt 0:00:05]} Bxd6 {[%emt 0:00:45]} 23. h4 {[%emt 0:02:48]} Bc4 {[%emt 0:12:03]} 24. Qe4 {[%emt 0:01:46]} Rf4 {[%emt 0:00:32]} 25. Qe3 {[%emt 0:00:45]} Qf8 {[%emt 0:02:45]} 26. Ng5 {[%emt 0:05:18]} Re8 {[%emt 0:00:39]} 27. g3 {[%emt 0:01:18]} Rf5 {[%emt 0:01:22]} 28. g4 {[%emt 0:06:32]} Rf4 {[%emt 0:02:27]} 29. Ne4 {[%emt 0:01:09]} Rxg4 {[%emt 0:01:34]} 30. Nxd6 {[%emt 0:02:51]} Qxd6 {[%emt 0:00:07]} 31. Be5 {[%emt 0:02:09]} Qe7 {[%emt 0:01:36]} 32. Rg1 {[%emt 0:00:46]} h5 {[%emt 0:01:56]} 33. Qf3 {[%emt 0:01:10]} Bd5 {[%emt 0:02:48]} 34. Qc3 {[%emt 0:00:39]} Rf8 {[%emt 0:01:33]} 35. Rxg4 {[%emt 0:00:39]} hxg4 {[%emt 0:00:02]} 36. Qg3 {[%emt 0:00:57]} Qf7 {[%emt 0:02:24]} 37. Rg1 {[%emt 0:00:47]} Qf1+ {[%emt 0:01:48]} 38. Qe1 {[%emt 0:00:04]} Qxe1+ {[%emt 0:00:31]} 39. Rxe1 {[%emt 0:00:02]} Rf3 {[%emt 0:02:01]} 40. Rg1 {[%emt 0:00:53]} Rh3 {[%emt 0:01:25]} 41. Bg3 {[%emt 0:33:11]} Rh1 {[%emt 0:32:14]} 42. Rxh1 {[%emt 0:00:40]} Bxh1 {[%emt 0:00:12]} 43. Kc1 {[%emt 0:02:43]} Kf7 {[%emt 0:01:50]} 44. Kd2 {[%emt 0:00:07]} Kf6 {[%emt 0:00:51]} 45. Ke3 {[%emt 0:01:27]} e5 {[%emt 0:00:24]} 46. Bh2 {[%emt 0:04:58]} Kf5 {[%emt 0:02:34]} 47. Bg3 {[%emt 0:00:41]} g6 {[%emt 0:00:13]} 48. Bh2 {[%emt 0:01:01]} 1/2-1/2

[Event "Israel-ch Women 2021"]
[Site "Haifa"]
[Date "2021.03.13"]
[Round "7.20"]
[White "Levitan, Ronit"]
[Black "Lian, Marina"]
[Result "0-1"]
[ECO "C07"]
[WhiteElo "2048"]
[BlackElo "1870"]
[Annotator "ChessBase"]
[PlyCount "100"]
[EventDate "2021.01.10"]
[EventType "swiss"]
[EventCountry "ISR"]
[SourceTitle "playchess.com"]
[Source "ChessBase"]
[SourceQuality "1"]
[TimeControl "40/5400+30:3600+30"]

1. e4 {[%emt 1:30:30]} e6 {[%emt 0:00:04]} 2. d4 {[%emt 0:00:00]} d5 {[%emt 0:00:09]} 3. Nd2 {[%emt 0:00:00]} c5 {[%emt 0:00:06]} 4. exd5 {[%emt 0:00:00]} Qxd5 {[%emt 0:00:12]} 5. Ngf3 {[%emt 0:00:00]} cxd4 {[%emt 0:00:16]} 6. Bc4 {[%emt 0:00:00]} Qd8 {[%emt 0:00:08]} 7. O-O {[%emt 0:00:00]} a6 {[%emt 0:00:09]} 8. Nb3 {[%emt 0:00:00]} Nc6 {[%emt 0:00:08]} 9. Nbxd4 {[%emt 0:00:00]} Nxd4 {[%emt 0:00:07]} 10. Nxd4 {[%emt 0:00:00]} Qc7 {[%emt 0:00:19]} 11. Bb3 {[%emt 0:00:00]} Bd6 {[%emt 0:00:26]} 12. Re1 {[%emt 0:00:00]} Bxh2+ {[%emt 0:00:49]} 13. Kh1 {[%emt 0:00:00]} Nf6 {[%emt 0:00:16]} 14. Nf5 {[%emt 0:00:00]} O-O {[%emt 0:00:29]} 15. Nxg7 {[%emt 0:00:00]} Rd8 {[%emt 0:01:11]} 16. Qf3 {[%emt 0:00:00]} Kxg7 {[%emt 0:00:51]} 17. Bh6+ {[%emt 0:00:00]} Kg6 {[%emt 0:00:12]} 18. c3 {[%emt 0:00:00]} Nh5 {[%emt 0:01:48]} 19. Bc1 {[%emt 0:00:00]} Bf4 {[%emt 0:05:44]} 20. g4 {[%emt 0:00:00]} Bxc1 {[%emt 0:03:10]} 21. gxh5+ {[%emt 0:00:00]} Kg7 {[%emt 0:00:49]} 22. Rg1+ {[%emt 0:00:00]} Kf8 {[%emt 0:00:34]} 23. Raxc1 {[%emt 0:00:00]} b6 {[%emt 0:12:47]} 24. Qe3 {[%emt 0:00:00]} Bb7+ {[%emt 0:04:24]} 25. f3 {[%emt 0:00:00]} Qc5 {[%emt 0:09:05]} 26. Qxc5+ {[%emt 0:00:00]} bxc5 {[%emt 0:02:28]} 27. Rcf1 {[%emt 0:00:00]} Rd2 {[%emt 0:08:54]} 28. Rg2 {[%emt 0:00:00]} Rad8 {[%emt 0:00:26]} 29. Rff2 {[%emt 0:00:00]} Rxf2 {[%emt 0:01:07]} 30. Rxf2 {[%emt 0:00:00]} Kg7 {[%emt 0:03:00]} 31. Kg2 {[%emt 0:00:00]} Kh6 {[%emt 0:01:16]} 32. Kg3 {[%emt 0:00:00]} Kxh5 {[%emt 0:00:29]} 33. Rh2+ {[%emt 0:00:00]} Kg6 {[%emt 0:00:13]} 34. Bc2+ {[%emt 0:00:00]} f5 {[%emt 0:00:14]} 35. Re2 {[%emt 0:00:00]} Kf6 {[%emt 0:04:20]} 36. Kf4 {[%emt 0:00:00]} h5 {[%emt 0:09:32]} 37. Rh2 {[%emt 0:00:00]} e5+ {[%emt 0:04:41]} 38. Ke3 {[%emt 0:00:00]} f4+ {[%emt 0:01:20]} 39. Ke2 {[%emt 0:00:00]} Rh8 {[%emt 0:00:35]} 40. Kf2 {[%emt 0:00:00]} h4 {[%emt 0:02:59]} 41. Bd3 {[%emt 0:55:23]} h3 {[%emt 1:07:07]} 42. Bf1 {[%emt 0:01:09]} Bc8 {[%emt 0:14:17]} 43. b4 {[%emt 0:00:32]} Kg5 {[%emt 0:00:00]} 44. a4 {[%emt 0:00:00]} Kh4 {[%emt 0:00:00]} 45. b5 {[%emt 0:00:00]} a5 {[%emt 0:00:00]} 46. Bd3 {[%emt 0:00:00]} Rd8 {[%emt 0:00:00]} 47. Be4 {[%emt 0:00:00]} Rd2+ {[%emt 0:00:00]} 48. Kg1 {[%emt 0:00:00]} Rd1+ {[%emt 0:00:00]} 49. Kf2 {[%emt 0:00:00]} Ra1 {[%emt 0:00:00]} 50. b6 {[%emt 0:03:26]} Ba6 {[%emt 0:00:00]} 0-1